bitfinex/quotes_BTCUSD_20220115
["timestamp","ask_amount","ask_price","bid_price","bid_amount"]
[1642219126117,0.03526099,42944.0,42941.0,0.11643859]
[1642219127525,0.03526099,42944.0,42943.0,0.55930865]
[1642219127723,0.03526099,42944.0,42943.0,0.27912827]
[1642219128821,0.03526099,42944.0,42943.0,0.54970966]
[1642219129022,0.01422594,42950.0,42943.0,0.54970966]
[1642219129224,0.376425,42949.0,42943.0,0.54970966]
[1642219129423,0.376425,42949.0,42944.0,0.11641074]
[1642219129424,8.595e-05,42949.0,42944.0,0.11641074]
[1642219130671,8.595e-05,42949.0,42946.0,0.116414]
[1642219131072,8.595e-05,42949.0,42946.0,0.058208]
[1642219131473,8.595e-05,42949.0,42945.0,0.05820537]
[1642219131672,8.595e-05,42949.0,42943.0,0.38858139]
[1642219132072,8.595e-05,42949.0,42943.0,0.44679859]
[1642219132676,8.595e-05,42949.0,42943.0,0.0582172]
[1642219132873,0.376425,42948.0,42943.0,0.1912172]
[1642219133073,8.595e-05,42949.0,42943.0,0.1912172]
[1642219133715,8.595e-05,42949.0,42943.0,0.49028179]
[1642219135921,8.595e-05,42949.0,42943.0,0.133]
[1642219136118,8.595e-05,42949.0,42942.0,0.00128664]
[1642219136320,8.595e-05,42949.0,42940.0,6.876e-05]
[1642219136321,0.00595256,42949.0,42940.0,6.876e-05]
[1642219136819,0.00595256,42949.0,42940.0,0.24914087]
[1642219137219,0.00595256,42949.0,42940.0,0.30736255]
[1642219140373,0.00595256,42949.0,42940.0,0.24914087]
[1642219142040,0.5920818,42949.0,42940.0,0.24914087]
[1642219142639,0.00595256,42949.0,42940.0,0.24914087]
[1642219142840,0.01395256,42949.0,42940.0,0.24914087]
[1642219143044,0.01395256,42949.0,42940.0,0.30736239]
[1642219144142,0.00595256,42949.0,42940.0,0.30736239]
[1642219144544,0.5920818,42949.0,42940.0,0.30736239]
[1642219145370,0.5920818,42949.0,42940.0,0.29736239]
[1642219145770,0.03416794,42943.0,42940.0,6.876e-05]
[1642219146670,0.03416794,42943.0,42938.0,0.00010314]
[1642219146871,0.20125249,42943.0,42938.0,0.00010314]
[1642219147270,0.03416794,42943.0,42938.0,0.00010314]
[1642219147671,0.09240294,42943.0,42938.0,0.00010314]
[1642219148818,0.23095577,42942.0,42938.0,0.00010314]
[1642219149419,0.00605202,42942.0,42938.0,0.00010314]
[1642219150118,0.22126864,42942.0,42938.0,0.00010314]
[1642219150517,0.00605202,42942.0,42938.0,0.00010314]
[1642219150918,0.22065041,42942.0,42938.0,0.00010314]
[1642219151917,0.00605202,42942.0,42938.0,0.00010314]
[1642219159973,0.00605202,42942.0,42938.0,0.26919453]
[1642219160175,0.00605202,42942.0,42938.0,0.52207587]
[1642219160374,0.00605202,42942.0,42938.0,0.46385487]
[1642219160574,0.00605202,42942.0,42938.0,0.40563325]
[1642219160775,0.00605202,42942.0,42938.0,0.26919453]
[1642219160980,0.00605202,42942.0,42938.0,0.32019453]
[1642219161876,0.00605202,42942.0,42939.0,0.05822052]
[1642219162277,0.00605202,42942.0,42940.0,6.876e-05]
[1642219162476,0.00605202,42942.0,42940.0,0.28843222]
[1642219163278,0.00605202,42942.0,42940.0,6.876e-05]
[1642219165125,0.00605202,42942.0,42941.0,0.36]
[1642219165327,0.00605202,42942.0,42941.0,0.06]
[1642219166526,0.00605202,42942.0,42941.0,0.05]
[1642219169375,0.00605202,42942.0,42941.0,0.04]
[1642219170175,0.00605202,42942.0,42941.0,0.29]
[1642219171425,0.00605202,42942.0,42941.0,0.04]
[1642219173230,0.00605202,42942.0,42940.0,0.0582883]
[1642219173830,0.00605202,42942.0,42940.0,6.876e-05]
[1642219181226,0.376425,42941.0,42940.0,6.876e-05]
[1642219181426,0.00605202,42942.0,42940.0,6.876e-05]
[1642219184175,0.58612924,42945.0,42940.0,6.876e-05]
[1642219184376,0.58612924,42944.0,42940.0,0.00129444]
[1642219184877,0.58612924,42944.0,42942.0,0.05821318]
[1642219185074,0.58621519,42949.0,42942.0,0.05821318]
[1642219185374,0.376425,42948.0,42942.0,0.36986026]
[1642219185774,0.96255424,42948.0,42942.0,0.36986026]
[1642219186651,0.376425,42948.0,42942.0,0.36986026]
[1642219187049,0.476425,42948.0,42942.0,0.8279099]
[1642219187349,1.06255424,42948.0,42942.0,0.8279099]
[1642219188350,0.476425,42948.0,42943.0,0.05821472]
[1642219188749,0.476425,42948.0,42945.0,0.30626649]
[1642219188951,0.523425,42948.0,42945.0,0.30626649]
[1642219189451,0.147,42948.0,42945.0,0.36447855]
[1642219189650,0.147,42948.0,42947.0,0.00123188]
[1642219190476,0.047,42948.0,42947.0,0.00123188]
[1642219190674,8.595e-05,42949.0,42947.0,0.00123188]
[1642219192476,8.595e-05,42949.0,42946.0,0.11640438]
[1642219194127,8.595e-05,42949.0,42946.0,0.17461238]
[1642219194528,0.53617516,42952.0,42946.0,0.72461238]
[1642219194727,0.53617516,42952.0,42946.0,0.17461238]
[1642219194926,0.53617516,42952.0,42946.0,0.11640438]
[1642219195126,0.68573419,42954.0,42946.0,0.11640438]
[1642219195329,0.68573419,42954.0,42947.0,0.116411]
[1642219195526,6.876e-05,42953.0,42952.0,0.31327604]
[1642219196525,0.37649376,42953.0,42950.0,0.05820383]
[1642219196926,6.876e-05,42953.0,42951.0,0.2321208]
[1642219197127,6.876e-05,42953.0,42951.0,0.07278953]
[1642219197383,6.876e-05,42953.0,42951.0,0.09536953]
[1642219197585,6.876e-05,42953.0,42952.0,0.926425]
[1642219197784,6.876e-05,42953.0,42952.0,0.376425]
[1642219197986,6.876e-05,42953.0,42952.0,0.70565984]
[1642219198184,6.876e-05,42953.0,42951.0,0.08946953]
[1642219198385,6.876e-05,42953.0,42951.0,0.06563]
[1642219198883,6.876e-05,42953.0,42948.0,0.05820897]
[1642219199084,6.876e-05,42953.0,42946.0,0.34853288]
[1642219199085,6.876e-05,42953.0,42949.0,0.55378536]
[1642219199285,6.876e-05,42953.0,42949.0,0.82484486]
[1642219199485,6.876e-05,42953.0,42950.0,0.05820567]
[1642219199685,0.67310295,42959.0,42950.0,0.6]
[1642219199884,0.67310295,42959.0,42950.0,0.71640253]
[1642219200086,8.595e-05,42958.0,42950.0,0.71640253]
[1642219200490,6.876e-05,42957.0,42950.0,0.71640253]
[1642219200685,6.876e-05,42957.0,42951.0,0.0582]
[1642219200886,6.876e-05,42957.0,42952.0,0.21442234]
[1642219201133,6.876e-05,42957.0,42953.0,0.058197]
[1642219201339,0.38229161,42956.0,42950.0,0.017]
[1642219201536,0.28930708,42955.0,42950.0,0.017]
[1642219201736,0.097961,42954.0,42950.0,0.017]
[1642219201935,0.00125852,42951.0,42950.0,0.017]
[1642219202135,0.37768352,42951.0,42950.0,0.017]
[1642219202338,0.37768352,42951.0,42943.0,0.23108908]
[1642219202538,0.00712513,42951.0,42943.0,0.23108908]
[1642219202736,0.00712513,42951.0,42944.0,0.00015471]
[1642219203138,0.00712513,42951.0,42943.0,0.0001719]
[1642219203541,0.57988107,42949.0,42943.0,0.0001719]
[1642219204237,0.57988107,42951.0,42943.0,0.0001719]
[1642219204438,0.22959818,42950.0,42943.0,0.0001719]
[1642219204637,0.376425,42949.0,42943.0,0.0001719]
[1642219204877,0.38229161,42949.0,42943.0,0.0001719]
[1642219205088,0.058228,42947.0,42943.0,0.0001719]
[1642219205281,0.28468471,42946.0,42938.0,0.09125785]
[1642219205479,0.28468471,42946.0,42939.0,0.00024066]
[1642219205880,0.23292371,42946.0,42939.0,0.00024066]
[1642219206180,0.57988107,42945.0,42939.0,0.00024066]
[1642219206778,0.57988107,42945.0,42938.0,0.00025785]
[1642219206981,0.00586661,42947.0,42938.0,0.00025785]
[1642219206982,0.58574768,42947.0,42938.0,0.00025785]
[1642219207181,0.58574768,42947.0,42938.0,0.05847585]
[1642219207581,0.57988107,42947.0,42939.0,0.00024066]
[1642219207981,0.57988107,42947.0,42940.0,0.05821727]
[1642219208184,0.57988107,42947.0,42941.0,0.26876207]
[1642219208382,0.57988107,42947.0,42941.0,0.26896835]
[1642219208631,0.57988107,42948.0,42942.0,0.00018909]
[1642219209432,0.09765492,42945.0,42942.0,0.00018909]
[1642219210032,0.09765492,42945.0,42939.0,0.00024066]
[1642219213179,0.00121409,42944.0,42939.0,0.00024066]
[1642219213678,0.00121409,42944.0,42938.0,0.00025785]
[1642219214079,0.27862913,42942.0,42938.0,0.00025785]
[1642219214678,0.04882746,42940.0,42938.0,0.00025785]
[1642219214878,0.09765492,42940.0,42938.0,0.00025785]
[1642219216338,0.376425,42939.0,42938.0,0.00025785]
[1642219216640,0.73192217,42939.0,42938.0,0.00025785]
[1642219216837,1.13896619,42939.0,42938.0,0.00025785]
[1642219217039,0.92781415,42939.0,42938.0,0.00025785]
[1642219217441,0.33154501,42928.0,42927.0,0.048]
[1642219217640,0.33154501,42928.0,42927.0,0.043]
[1642219217641,0.47527501,42928.0,42927.0,0.043]
[1642219217842,0.85170001,42928.0,42927.0,0.0431891]
[1642219218039,0.79344801,42928.0,42927.0,0.0431891]
[1642219218239,0.520155,42928.0,42927.0,0.0431891]
[1642219218443,0.520155,42928.0,42927.0,0.0001891]
[1642219218839,0.520155,42928.0,42924.0,0.00024067]
[1642219219039,0.14873,42928.0,42924.0,0.00024067]
[1642219219239,0.0512,42928.0,42924.0,0.00024067]
[1642219220086,0.09765492,42926.0,42924.0,0.00024067]
[1642219221290,0.09765492,42926.0,42923.0,0.01325786]
[1642219221490,0.09765492,42926.0,42924.0,0.00024067]
[1642219222888,0.09765492,42926.0,42923.0,0.00025786]
[1642219223752,0.09765492,42926.0,42922.0,0.32057189]
[1642219223953,0.09765492,42926.0,42923.0,0.82779232]
[1642219224149,0.09765492,42926.0,42923.0,0.82279232]
[1642219224351,0.09890805,42926.0,42921.0,0.0011]
[1642219225151,0.00125313,42926.0,42921.0,0.0011]
[1642219225350,0.04882746,42924.0,42921.0,0.0011]
[1642219225553,0.09765492,42924.0,42921.0,0.0011]
[1642219229785,0.09765492,42924.0,42923.0,0.28913332]
[1642219231438,0.09765492,42924.0,42923.0,1.76579632]
[1642219232239,0.09765492,42924.0,42923.0,1.76079632]
[1642219232637,0.09765492,42924.0,42923.0,1.81903332]
[1642219232839,0.09765492,42924.0,42923.0,1.86403332]
[1642219233036,0.09765492,42924.0,42923.0,1.95803332]
[1642219233437,0.0462,42934.0,42928.0,0.05823108]
[1642219233637,0.0462,42934.0,42933.0,0.25500984]
[1642219234036,0.0462,42934.0,42932.0,0.27831577]
[1642219234239,0.0462,42934.0,42929.0,0.059525]
[1642219234437,0.0001719,42933.0,42932.0,0.05822809]
[1642219235078,0.0001719,42933.0,42932.0,0.40045479]
[1642219235479,0.0001719,42933.0,42932.0,1.00898238]
[1642219235681,0.9525,42957.0,42948.0,0.04517864]
[1642219235979,0.376663,42951.0,42948.0,0.04517864]
[1642219236783,0.434883,42951.0,42948.0,0.04517864]
[1642219238280,0.64884388,42951.0,42948.0,0.04517864]
[1642219239137,0.434883,42951.0,42948.0,0.04517864]
[1642219241340,0.493108,42951.0,42948.0,0.04517864]
[1642219242139,0.22185448,42950.0,42948.0,0.04517864]
[1642219242385,0.056486,42949.0,42948.0,0.04517864]
[1642219242586,0.05676105,42949.0,42948.0,0.04517864]
[1642219248038,0.05676105,42949.0,42948.0,0.04017864]
[1642219260784,0.28176981,42949.0,42948.0,0.04017864]
[1642219261634,0.05676105,42949.0,42948.0,0.04017864]
[1642219263738,0.2808029,42949.0,42948.0,0.04017864]
[1642219263938,0.05676105,42949.0,42948.0,0.04017864]
[1642219268311,0.28065837,42949.0,42948.0,0.04017864]
[1642219270738,0.05676105,42949.0,42948.0,0.04017864]
[1642219272239,0.28249097,42949.0,42948.0,0.04017864]
[1642219273392,0.31994703,42947.0,42938.0,0.3121]
[1642219273588,0.27976924,42946.0,42938.0,0.3121]
[1642219273789,0.27999272,42946.0,42934.0,0.32986472]
[1642219273990,0.00020629,42945.0,42934.0,0.27163699]
[1642219274490,0.0001891,42944.0,42936.0,0.32454953]
[1642219274790,0.00017191,42943.0,42934.0,0.27163699]
[1642219275090,0.00015472,42942.0,42934.0,0.27163699]
[1642219275289,0.00015472,42942.0,42934.0,0.38363699]
[1642219275490,0.00013753,42941.0,42934.0,0.38363699]
[1642219275790,0.00012034,42940.0,42935.0,0.25825186]
[1642219276255,0.00010315,42939.0,42934.0,0.112]
[1642219276457,0.00010315,42939.0,42933.0,0.5488]
[1642219276657,8.596e-05,42938.0,42933.0,0.5488]
[1642219276857,8.596e-05,42938.0,42924.0,0.50128095]
[1642219277058,6.877e-05,42937.0,42924.0,0.50128095]
[1642219277258,6.877e-05,42937.0,42925.0,0.00013752]
[1642219277457,6.877e-05,42937.0,42930.0,0.27167418]
[1642219280487,6.877e-05,42937.0,42928.0,0.31202436]
[1642219280887,6.877e-05,42937.0,42929.0,6.876e-05]
[1642219281988,6.877e-05,42937.0,42929.0,0.30791537]
[1642219282790,6.877e-05,42937.0,42929.0,6.876e-05]
[1642219283290,0.05417538,42938.0,42929.0,6.876e-05]
[1642219283492,0.05417538,42938.0,42926.0,0.00012033]
[1642219283746,0.05417538,42938.0,42928.0,0.31403767]
[1642219284147,0.05417538,42938.0,42929.0,0.00013753]
[1642219285545,0.058241,42936.0,42929.0,0.00013753]
[1642219285744,0.058241,42936.0,42928.0,0.00015472]
[1642219287146,0.058238,42938.0,42928.0,0.00015472]
[1642219287586,0.2204602,42937.0,42928.0,0.00015472]
[1642219288189,0.058238,42938.0,42928.0,0.00015472]
[1642219288588,0.058238,42938.0,42929.0,0.30604344]
[1642219288994,0.058238,42938.0,42930.0,0.00012034]
[1642219289189,0.38496688,42940.0,42930.0,0.00012034]
[1642219289390,0.376663,42939.0,42930.0,0.00012034]
[1642219289589,0.476663,42939.0,42930.0,0.00012034]
[1642219290789,0.22337423,42938.0,42930.0,0.00012034]
[1642219291842,0.22337423,42938.0,42928.0,0.00015472]
[1642219292443,0.025,42939.0,42928.0,0.00015472]
[1642219292642,0.0012293,42940.0,42929.0,0.05823421]
[1642219293043,0.0012293,42940.0,42930.0,0.00012034]
[1642219294246,0.27635731,42940.0,42930.0,0.00012034]
[1642219294443,0.376663,42939.0,42930.0,0.00012034]
[1642219294644,0.476663,42939.0,42930.0,0.00012034]
[1642219295291,0.511663,42939.0,42928.0,0.00015472]
[1642219295489,0.135,42939.0,42928.0,0.00015472]
[1642219295889,0.035,42939.0,42928.0,0.00015472]
[1642219296489,0.37635731,42940.0,42928.0,0.00015472]
[1642219297390,0.058237,42939.0,42928.0,0.00015472]
[1642219298747,0.21827594,42938.0,42928.0,0.00015472]
[1642219298944,0.22432794,42938.0,42928.0,0.00015472]
[1642219299349,0.006052,42938.0,42928.0,0.00015472]
[1642219299546,0.006052,42938.0,42928.0,0.05838896]
[1642219299744,0.42257083,42938.0,42928.0,0.05838896]
[1642219299944,0.52257083,42938.0,42929.0,0.00013753]
[1642219301450,0.54757083,42938.0,42929.0,0.00013753]
[1642219301851,0.54757083,42938.0,42929.0,0.05837088]
[1642219302048,0.54757083,42938.0,42929.0,0.00013753]
[1642219302248,0.54757083,42938.0,42930.0,0.00012034]
[1642219302486,0.54757083,42938.0,42929.0,0.00013753]
[1642219302686,0.52257083,42938.0,42929.0,0.00013753]
[1642219303288,0.54657083,42938.0,42929.0,0.00013753]
[1642219303686,0.54657083,42938.0,42929.0,0.05837241]
[1642219304088,0.54657083,42938.0,42930.0,0.00012034]
[1642219304590,0.52257083,42938.0,42930.0,0.00012034]
[1642219304989,0.52257083,42938.0,42931.0,0.0582313]
[1642219305488,0.54657083,42938.0,42932.0,8.596e-05]
[1642219306137,0.54657083,42938.0,42929.0,0.00013753]
[1642219306542,0.52257083,42938.0,42929.0,0.00013753]
[1642219307144,0.52257083,42938.0,42931.0,0.29583768]
[1642219307341,0.54757083,42938.0,42931.0,0.29583768]
[1642219307541,0.54757083,42938.0,42932.0,8.596e-05]
[1642219308142,0.60581083,42938.0,42932.0,8.596e-05]
[1642219308342,0.376663,42937.0,42932.0,8.596e-05]
[1642219309245,0.376663,42937.0,42932.0,0.21787109]
[1642219309445,0.023,42938.0,42935.0,0.00121734]
[1642219309652,0.57988107,42936.0,42935.0,0.00121734]
[1642219310093,0.57988107,42936.0,42935.0,0.11765742]
[1642219310692,0.58050761,42936.0,42935.0,0.17587542]
[1642219310893,0.00062654,42936.0,42935.0,0.17587542]
[1642219311493,0.00062654,42936.0,42935.0,1.36040599]
[1642219311694,0.00062654,42936.0,42935.0,1.73693891]
[1642219311896,0.00125308,42936.0,42935.0,1.73693891]
[1642219312497,0.00125308,42936.0,42935.0,0.78693891]
[1642219312897,0.00187962,42936.0,42935.0,0.78693891]
[1642219313296,0.00187962,42936.0,42935.0,0.80793891]
[1642219313954,0.00250616,42936.0,42935.0,0.80793891]
[1642219314654,0.00250616,42936.0,42935.0,0.78693891]
[1642219315053,0.0031327,42936.0,42935.0,0.78693891]
[1642219315457,0.0031327,42936.0,42935.0,0.80393891]
[1642219315654,0.0031327,42936.0,42935.0,0.56953842]
[1642219315855,0.0031327,42936.0,42935.0,0.51132042]
[1642219316055,0.00375924,42936.0,42935.0,0.51132042]
[1642219316757,0.00375924,42936.0,42935.0,0.49432042]
[1642219317157,0.00438578,42936.0,42935.0,0.49432042]
[1642219317391,0.00438578,42936.0,42935.0,0.51532042]
[1642219318191,0.00501232,42936.0,42935.0,0.51532042]
[1642219318591,0.00501232,42936.0,42935.0,0.49310308]
[1642219318791,0.0212807,42936.0,42935.0,0.376663]
[1642219318989,0.0212807,42936.0,42933.0,6.877e-05]
[1642219319190,0.02190724,42936.0,42933.0,6.877e-05]
[1642219319391,0.02190724,42936.0,42934.0,0.376663]
[1642219319591,0.02190724,42936.0,42932.0,0.02008596]
[1642219319793,0.02190724,42936.0,42933.0,0.376663]
[1642219319993,0.03817562,42936.0,42933.0,0.37673177]
[1642219320190,0.03880216,42936.0,42933.0,0.37673177]
[1642219320890,0.05507054,42936.0,42933.0,6.877e-05]
[1642219321343,0.05569708,42936.0,42930.0,0.00012034]
[1642219321940,0.07196546,42936.0,42930.0,0.00012034]
[1642219322340,0.072592,42936.0,42932.0,0.05822778]
[1642219322741,0.072592,42936.0,42933.0,6.877e-05]
[1642219322941,0.08886038,42936.0,42933.0,6.877e-05]
[1642219323141,0.08886038,42936.0,42931.0,0.00010315]
[1642219323340,0.08948692,42936.0,42931.0,0.00010315]
[1642219323742,0.10345256,42936.0,42931.0,0.00010315]
[1642219323941,0.11972094,42936.0,42931.0,0.05832915]
[1642219324143,0.11972094,42936.0,42931.0,0.11655792]
[1642219324344,0.57996702,42942.0,42934.0,0.00123731]
[1642219324543,0.56726702,42942.0,42941.0,0.0012965]
[1642219324742,0.3860675,42942.0,42941.0,0.0012965]
[1642219324993,0.67642506,42944.0,42941.0,1.23718518]
[1642219325197,0.11402786,42945.0,42942.0,0.74737684]
[1642219325392,0.11402786,42945.0,42943.0,0.29622409]
[1642219325593,0.1146544,42945.0,42944.0,1.226663]
[1642219325793,0.11402786,42945.0,42944.0,1.226663]
[1642219326193,0.06398783,42945.0,42944.0,1.226663]
[1642219326393,0.06398783,42945.0,42944.0,0.376663]
[1642219326595,0.06398783,42945.0,42944.0,0.58436888]
[1642219327394,0.06398783,42945.0,42944.0,0.61136888]
[1642219328738,0.06398783,42945.0,42944.0,0.58436888]
[1642219329243,0.06398783,42945.0,42944.0,0.5728792]
[1642219329440,0.06398783,42945.0,42944.0,0.6008792]
[1642219329641,0.05115194,42945.0,42944.0,0.6008792]
[1642219329839,0.00434231,42945.0,42944.0,0.404663]
[1642219330040,0.00434231,42945.0,42944.0,0.904663]
[1642219330640,0.00434231,42945.0,42944.0,0.376663]
[1642219331341,0.00434231,42945.0,42944.0,0.57005772]
[1642219332392,0.00434231,42945.0,42944.0,0.376663]
[1642219332592,0.00434231,42945.0,42942.0,0.37071384]
[1642219332795,0.03023402,42946.0,42942.0,0.37071384]
[1642219332796,0.02957633,42946.0,42942.0,0.37071384]
[1642219333592,0.02957633,42946.0,42942.0,0.9923487]
[1642219333794,0.02957633,42946.0,42943.0,0.43487923]
[1642219334194,0.61172555,42946.0,42943.0,0.43487923]
[1642219334394,0.61172555,42946.0,42943.0,0.2528176]
[1642219334596,0.61172555,42946.0,42943.0,0.05821623]
[1642219334795,0.5984176,42946.0,42943.0,0.05821623]
[1642219335196,0.01626838,42946.0,42943.0,0.05821623]
[1642219335401,0.01626838,42946.0,42942.0,0.023]
[1642219335797,0.72186578,42946.0,42942.0,0.023]
[1642219335997,0.5984176,42946.0,42942.0,0.023]
[1642219336443,0.95881222,42945.0,42942.0,0.023]
[1642219336644,0.95881222,42945.0,42937.0,0.5]
[1642219336844,0.58214922,42945.0,42937.0,0.5]
[1642219337046,0.58214922,42945.0,42938.0,6.876e-05]
[1642219337846,0.64038022,42945.0,42938.0,6.876e-05]
[1642219338844,0.58214922,42943.0,42938.0,6.876e-05]
[1642219339046,0.58214922,42943.0,42937.0,8.595e-05]
[1642219339246,0.64038022,42943.0,42937.0,8.595e-05]
[1642219339447,0.376663,42942.0,42937.0,8.595e-05]
[1642219339647,0.00129281,42939.0,42934.0,0.056]
[1642219339886,0.00129281,42939.0,42935.0,0.00012034]
[1642219340291,0.29715512,42938.0,42935.0,0.00012034]
[1642219340694,0.434902,42937.0,42935.0,0.00012034]
[1642219341090,0.434902,42937.0,42929.0,0.00022348]
[1642219341492,0.440902,42937.0,42929.0,0.00022348]
[1642219342095,0.382663,42937.0,42929.0,0.00022348]
[1642219342794,0.376663,42937.0,42929.0,0.00022348]
[1642219343198,0.00123579,42933.0,42929.0,0.00022348]
[1642219343394,0.03516109,42930.0,42929.0,0.00022348]
[1642219343657,0.03516109,42930.0,42925.0,0.088]
[1642219343858,0.03516109,42930.0,42926.0,0.00027505]
[1642219344258,0.64648172,42929.0,42926.0,0.00027505]
[1642219344457,0.32807372,42929.0,42926.0,0.00027505]
[1642219344657,0.058254,42928.0,42926.0,0.00027505]
[1642219344859,0.376663,42927.0,42926.0,0.00027505]
[1642219345057,0.376663,42927.0,42922.0,0.00034381]
[1642219345259,0.26981872,42929.0,42922.0,0.00034381]
[1642219345459,0.58796708,42928.0,42922.0,0.00034381]
[1642219345863,0.376663,42928.0,42922.0,0.00034381]
[1642219346861,0.058255,42927.0,42922.0,0.00034381]
[1642219347061,0.056486,42926.0,42922.0,0.00034381]
[1642219348588,0.058255,42925.0,42922.0,0.00034381]
[1642219348788,0.376663,42924.0,42922.0,0.00034381]
[1642219349191,0.466593,42924.0,42922.0,0.00034381]
[1642219349991,0.71947698,42924.0,42922.0,0.00034381]
[1642219351439,0.73647698,42924.0,42922.0,0.00034381]
[1642219351839,0.73647698,42924.0,42879.0,1.26711737]
[1642219352041,0.35981398,42924.0,42910.0,0.73576767]
[1642219352242,0.058259,42922.0,42912.0,0.0001719]
[1642219352941,0.37979122,42922.0,42914.0,0.26915147]
[1642219353340,0.37979122,42922.0,42915.0,0.31434631]
[1642219353541,0.058256,42924.0,42917.0,0.35081138]
[1642219353941,0.007,42925.0,42918.0,6.876e-05]
[1642219354142,0.376663,42924.0,42918.0,6.876e-05]
[1642219355198,0.59085076,42927.0,42918.0,6.876e-05]
[1642219355399,0.376663,42926.0,42918.0,6.876e-05]
[1642219355600,0.37673176,42926.0,42918.0,6.876e-05]
[1642219356000,0.68094547,42926.0,42918.0,6.876e-05]
[1642219356404,0.8925798,42926.0,42918.0,6.876e-05]
[1642219356802,0.89003242,42926.0,42918.0,6.876e-05]
[1642219357403,0.37673176,42926.0,42918.0,6.876e-05]
[1642219357603,0.00906876,42926.0,42918.0,0.05831355]
[1642219358003,0.00906876,42926.0,42918.0,6.876e-05]
[1642219358403,0.00906876,42926.0,42921.0,0.3107847]
[1642219358641,0.00906876,42926.0,42918.0,6.876e-05]
[1642219358642,0.376663,42925.0,42918.0,6.876e-05]
[1642219358845,6.876e-05,42926.0,42918.0,6.876e-05]
[1642219359145,0.2730047,42929.0,42919.0,0.85]
[1642219359441,0.2730047,42929.0,42920.0,0.00010314]
[1642219359640,0.376663,42928.0,42920.0,0.00010314]
[1642219359840,0.376663,42928.0,42918.0,0.00013752]
[1642219360040,0.376663,42928.0,42920.0,0.0582434]
[1642219360241,0.376663,42928.0,42918.0,0.00013752]
[1642219360442,0.376663,42928.0,42921.0,8.595e-05]
[1642219360642,0.376663,42928.0,42918.0,0.00013752]
[1642219362419,0.95881222,42928.0,42919.0,0.28148954]
[1642219362618,0.20837748,42927.0,42919.0,0.28148954]
[1642219362818,0.056486,42926.0,42920.0,0.00010314]
[1642219364619,0.056486,42926.0,42922.0,0.34397488]
[1642219364820,0.58214922,42928.0,42922.0,0.34397488]
[1642219365020,0.376663,42927.0,42922.0,0.34397488]
[1642219366019,0.376663,42927.0,42920.0,0.00010314]
[1642219367062,0.376663,42927.0,42920.0,0.50010314]
[1642219367262,0.51419957,42929.0,42920.0,0.50010314]
[1642219367461,0.376663,42928.0,42921.0,8.595e-05]
[1642219367860,0.058254,42926.0,42921.0,8.595e-05]
[1642219368160,0.59014922,42929.0,42922.0,0.05824123]
[1642219368360,0.376663,42928.0,42921.0,8.595e-05]
[1642219368760,0.58214922,42929.0,42921.0,8.595e-05]
[1642219369360,0.376663,42928.0,42921.0,8.595e-05]
[1642219370196,0.376663,42928.0,42922.0,0.5]
[1642219370395,0.376663,42928.0,42922.0,0.75789762]
[1642219370695,0.58214922,42929.0,42922.0,0.75789762]
[1642219371498,0.60214922,42929.0,42922.0,0.77189762]
[1642219371896,0.02,42929.0,42922.0,0.77189762]
[1642219372296,0.02,42929.0,42923.0,0.05824001]
[1642219372496,0.02,42929.0,42923.0,0.55824001]
[1642219372696,0.4096,42933.0,42923.0,0.55824001]
[1642219372896,0.4096,42933.0,42925.0,0.30041713]
[1642219373096,0.00605271,42934.0,42925.0,0.30041713]
[1642219373097,0.37676614,42932.0,42925.0,0.30041713]
[1642219373498,8.595e-05,42931.0,42925.0,0.30041713]
[1642219373962,6.876e-05,42930.0,42925.0,0.30041713]
[1642219374358,6.876e-05,42930.0,42925.0,0.29541713]
[1642219374560,6.876e-05,42930.0,42925.0,0.79541713]
[1642219374760,6.876e-05,42930.0,42925.0,0.5]
[1642219375460,6.876e-05,42930.0,42925.0,0.533]
[1642219376860,6.876e-05,42930.0,42925.0,0.5]
[1642219377600,6.876e-05,42930.0,42925.0,0.514]
[1642219378801,6.876e-05,42930.0,42925.0,0.5]
[1642219379201,6.876e-05,42930.0,42928.0,0.5]
[1642219379402,6.876e-05,42930.0,42928.0,0.55823507]
[1642219379602,6.876e-05,42930.0,42928.0,0.5]
[1642219380301,6.876e-05,42930.0,42929.0,0.34317249]
[1642219382148,6.876e-05,42930.0,42928.0,0.514]
[1642219382849,6.876e-05,42930.0,42928.0,0.5]
[1642219383250,6.876e-05,42930.0,42929.0,0.24400931]
[1642219383951,6.876e-05,42930.0,42928.0,0.518]
[1642219384554,0.376663,42929.0,42928.0,0.518]
[1642219384753,0.376663,42929.0,42928.0,0.5]
[1642219385208,0.5849159,42929.0,42928.0,0.5]
[1642219385608,0.376663,42929.0,42928.0,0.5]
[1642219385808,0.95509756,42929.0,42928.0,0.5]
[1642219386308,0.95509756,42929.0,42921.0,0.74443566]
[1642219386506,0.87696196,42930.0,42921.0,0.74443566]
[1642219386708,1.10233343,42930.0,42922.0,6.876e-05]
[1642219387006,0.2625274,42930.0,42922.0,6.876e-05]
[1642219387606,0.84180711,42930.0,42922.0,6.876e-05]
[1642219387812,0.2101557,42929.0,42922.0,6.876e-05]
[1642219388209,0.84180711,42930.0,42922.0,6.876e-05]
[1642219388650,0.376663,42929.0,42922.0,6.876e-05]
[1642219388850,1.16496218,42929.0,42922.0,6.876e-05]
[1642219389052,1.42707265,42929.0,42922.0,6.876e-05]
[1642219389250,1.16496218,42929.0,42922.0,6.876e-05]
[1642219389450,0.78829918,42929.0,42922.0,6.876e-05]
[1642219389651,0.81605725,42929.0,42922.0,6.876e-05]
[1642219389951,0.81685876,42929.0,42922.0,6.876e-05]
[1642219390252,0.60627971,42929.0,42922.0,6.876e-05]
[1642219390653,0.81493271,42929.0,42922.0,6.876e-05]
[1642219390853,0.57927971,42929.0,42922.0,6.876e-05]
[1642219391654,0.022,42929.0,42922.0,6.876e-05]
[1642219392501,0.60127971,42929.0,42922.0,6.876e-05]
[1642219392702,0.57927971,42929.0,42922.0,6.876e-05]
[1642219393206,0.00010314,42928.0,42921.0,0.80628527]
[1642219393603,8.595e-05,42927.0,42921.0,0.81928527]
[1642219394003,6.876e-05,42926.0,42921.0,0.81928527]
[1642219394405,0.00010314,42928.0,42921.0,0.81928527]
[1642219394803,8.595e-05,42927.0,42921.0,0.80628527]
[1642219395205,6.876e-05,42926.0,42921.0,0.80628527]
[1642219395604,0.57940004,42929.0,42921.0,0.82128527]
[1642219396005,0.00010314,42928.0,42921.0,0.82128527]
[1642219396452,8.595e-05,42927.0,42921.0,0.82128527]
[1642219396751,6.876e-05,42926.0,42921.0,0.80628527]
[1642219396951,6.876e-05,42926.0,42921.0,0.86452727]
[1642219397151,0.57940004,42929.0,42921.0,0.86452727]
[1642219397554,0.00010314,42928.0,42921.0,0.88352727]
[1642219397754,0.22733778,42928.0,42921.0,0.88352727]
[1642219397956,8.595e-05,42927.0,42923.0,0.05824125]
[1642219398156,8.595e-05,42927.0,42923.0,0.55824125]
[1642219398357,6.876e-05,42926.0,42923.0,0.55824125]
[1642219398753,8.595e-05,42927.0,42923.0,0.5]
[1642219399154,6.876e-05,42926.0,42923.0,0.5]
[1642219399554,0.00012033,42929.0,42923.0,0.508]